bitfinex/quotes_BTCUSD_20241205
["timestamp","ask_amount","ask_price","bid_price","bid_amount"]
[1733366778814,0.02295593,100990.0,100890.0,0.01973]
[1733366779039,0.03697152,100990.0,100900.0,0.01973]
[1733366779461,0.01401559,100990.0,100900.0,0.01990362]
[1733366779672,0.03639495,100990.0,100900.0,0.01990362]
[1733366779877,0.03639495,100990.0,100910.0,0.01973]
[1733366779878,0.02237936,100980.0,100910.0,0.01973]
[1733366780379,0.02237936,100980.0,100870.0,0.01589169]
[1733366780380,0.03410831,100980.0,100870.0,0.01589169]
[1733366780610,0.03410831,100950.0,100870.0,0.0005799]
[1733366781040,0.00981239,100980.0,100880.0,0.01973]
[1733366781251,0.01401559,100990.0,100900.0,0.01973]
[1733366781455,0.0481239,100990.0,100900.0,0.01973]
[1733366781657,0.03410831,100940.0,100900.0,0.01973]
[1733366781866,0.03410831,100930.0,100910.0,0.01973]
[1733366782285,0.03410831,100920.0,100820.0,0.01589169]
[1733366782487,0.03410831,100930.0,100830.0,0.01589169]
[1733366782692,0.03410831,100920.0,100810.0,0.01935569]
[1733366782910,0.03410831,100920.0,100830.0,0.01973]
[1733366783118,0.00574042,100920.0,100830.0,0.01973]
[1733366783323,0.05740423,100930.0,100830.0,0.03562169]
[1733366783533,0.03410831,100940.0,100850.0,0.01973]
[1733366783745,0.03410831,100940.0,100880.0,0.01973]
[1733366783983,0.05758465,100930.0,100890.0,0.01973]
[1733366784204,0.03410831,100910.0,100890.0,0.01973]
[1733366784833,0.03410831,100910.0,100890.0,0.0203099]
[1733366785041,0.03410831,100920.0,100890.0,0.0019635]
[1733366785250,0.03410831,100900.0,100820.0,0.1298]
[1733366785482,0.02480818,100910.0,100820.0,0.14569169]
[1733366785682,0.04031667,100920.0,100820.0,0.14569169]
[1733366785846,0.06336484,100920.0,100830.0,0.01973]
[1733366786047,0.03410831,100900.0,100830.0,0.01973]
[1733366786264,0.00583232,100900.0,100830.0,0.01973]
[1733366786441,0.02421484,100910.0,100830.0,0.03562169]
[1733366786623,0.00057754,100920.0,100850.0,0.01973]
[1733366786824,0.00057754,100920.0,100860.0,0.01973]
[1733366787079,0.06066456,100910.0,100860.0,0.01973]
[1733366787423,0.02655625,100910.0,100860.0,0.01973]
[1733366787624,0.06066456,100910.0,100860.0,0.01973]
[1733366787835,0.03768046,100910.0,100860.0,0.01973]
[1733366788062,0.04523252,100910.0,100870.0,0.01973]
[1733366788282,0.0256586,100900.0,100870.0,0.01973]
[1733366788431,0.03410831,100900.0,100870.0,0.01973]
[1733366788890,0.05852664,100890.0,100870.0,0.01973]
[1733366789022,0.05057754,100920.0,100880.0,0.01973]
[1733366789023,0.03410831,100900.0,100880.0,0.01973]
[1733366789419,0.03410831,100890.0,100810.0,0.003464]
[1733366789635,0.02529583,100890.0,100810.0,0.003464]
[1733366789850,0.03410831,100880.0,100810.0,0.003464]
[1733366790065,0.03410831,100880.0,100820.0,0.01973]
[1733366790264,0.03410831,100860.0,100820.0,0.01973]
[1733366790472,0.03410831,100850.0,100820.0,0.01973]
[1733366790674,0.02391916,100850.0,100820.0,0.01973]
[1733366790880,0.01052192,100850.0,100820.0,0.01973]
[1733366791086,0.01052192,100850.0,100820.0,0.01990382]
[1733366791306,0.02342266,100860.0,100820.0,0.01990382]
[1733366791522,0.04700905,100860.0,100820.0,0.01990382]
[1733366791738,0.03410831,100830.0,100820.0,0.01990382]
[1733366791937,0.02254584,100850.0,100810.0,0.003464]
[1733366792144,0.02632939,100820.0,100810.0,0.00363789]
[1733366792368,0.03198141,100820.0,100810.0,0.00363789]
[1733366792595,0.05419799,100820.0,100810.0,0.00363789]
[1733366793077,0.0278686,100820.0,100790.0,0.01973]
[1733366793291,0.0278686,100810.0,100800.0,0.00017332]
[1733366793475,0.05167773,100840.0,100800.0,0.00017332]
[1733366793723,0.02632939,100830.0,100800.0,0.00017332]
[1733366793927,0.02632939,100820.0,100800.0,0.00017332]
[1733366794342,0.02632939,100820.0,100790.0,0.01973]
[1733366794343,0.02484091,100810.0,100790.0,0.01973]
[1733366794551,0.02484091,100810.0,100780.0,0.1517322]
[1733366794988,0.00017306,100820.0,100780.0,0.1517322]
[1733366795214,0.02431617,100810.0,100780.0,0.1517322]
[1733366795425,0.02939803,100810.0,100780.0,0.1517322]
[1733366795604,0.00017306,100820.0,100780.0,0.1517322]
[1733366795903,0.02372837,100810.0,100780.0,0.1517322]
[1733366796575,0.00017306,100820.0,100780.0,0.1517322]
[1733366798425,0.00017306,100820.0,100780.0,0.0214622]
[1733366798655,0.02293949,100860.0,100780.0,0.0214622]
[1733366798856,0.04577393,100880.0,100800.0,0.01973]
[1733366799066,0.05110428,100880.0,100800.0,0.01973]
[1733366799730,0.00550428,100880.0,100820.0,0.01973]
[1733366799953,0.00017393,100880.0,100850.0,0.01973]
[1733366800188,0.02303826,100900.0,100850.0,0.01973]
[1733366800408,0.04936765,100900.0,100850.0,0.01973]
[1733366800627,0.02632939,100870.0,100850.0,0.01973]
[1733366800852,0.17270229,100900.0,100850.0,0.01973]
[1733366801068,0.01736403,100870.0,100850.0,0.01973]
[1733366801291,0.0273232,100860.0,100780.0,0.0017322]
[1733366801744,0.04468723,100860.0,100780.0,0.0017322]
[1733366801947,0.04468723,100860.0,100780.0,0.00232627]
[1733366802169,0.04468723,100860.0,100790.0,0.01973]
[1733366802380,0.0273232,100860.0,100790.0,0.01973]
[1733366803314,0.04468723,100860.0,100790.0,0.01973]
[1733366803528,0.01033274,100850.0,100790.0,0.01973]
[1733366804445,0.01033274,100850.0,100810.0,0.01973]
[1733366804654,0.0781,100930.0,100830.0,0.05236597]
[1733366804870,0.08016403,100930.0,100830.0,0.05236597]
[1733366805113,0.10010179,100930.0,100830.0,0.05236597]
[1733366805330,0.03902679,100920.0,100830.0,0.01973]
[1733366805515,0.02166276,100920.0,100830.0,0.05236597]
[1733366805978,0.01736403,100910.0,100830.0,0.01973]
[1733366806197,0.02678061,100900.0,100830.0,0.01973]
[1733366806406,0.01736403,100890.0,100860.0,0.01973]
[1733366806830,0.02668966,100880.0,100860.0,0.01973]
[1733366807702,0.06736403,100910.0,100860.0,0.01973]
[1733366807929,0.0746187,100910.0,100860.0,0.01973]
[1733366808134,0.01736403,100890.0,100860.0,0.01973]
[1733366808560,0.02244318,100880.0,100860.0,0.01973]
[1733366808763,0.04872802,100880.0,100860.0,0.01973]
[1733366808975,0.02801924,100880.0,100860.0,0.01973]
[1733366809627,0.0017344,100880.0,100860.0,0.01973]
[1733366810522,0.0017344,100880.0,100860.0,0.05236597]
[1733366810748,0.0017344,100880.0,100870.0,0.024913]
[1733366811056,0.00057944,100910.0,100870.0,0.024913]
[1733366812068,0.06736403,100960.0,100870.0,0.024913]
[1733366812280,0.0070837,100960.0,100870.0,0.024913]
[1733366812500,0.02444773,100960.0,100870.0,0.024913]
[1733366812704,0.0070837,100960.0,100870.0,0.024913]
[1733366813122,0.00017386,100960.0,100890.0,0.01973]
[1733366813588,0.00017386,100960.0,100890.0,0.05236597]
[1733366813794,0.00017386,100960.0,100890.0,0.01973]
[1733366815114,0.06753789,100960.0,100900.0,0.01973]
[1733366815334,0.05017386,100960.0,100900.0,0.01973]
[1733366815563,0.00710109,100960.0,100900.0,0.01973]
[1733366815796,0.00017386,100960.0,100900.0,0.01973]
[1733366816026,0.00017386,100960.0,100920.0,0.05236597]
[1733366816232,0.0017344,100970.0,100920.0,0.05236597]
[1733366816461,0.0017344,100970.0,100940.0,0.05236597]
[1733366816670,0.0017344,100970.0,100940.0,0.10096597]
[1733366816879,0.0008672,100990.0,100960.0,0.01973]
[1733366817518,0.0008672,100990.0,100960.0,0.05236597]
[1733366817748,0.0008672,100990.0,100980.0,0.01973]
[1733366819066,0.000866,101010.0,100980.0,0.01973]
[1733366819268,0.00104132,101010.0,100980.0,0.05236597]
[1733366819503,0.00104132,101010.0,100980.0,0.01973]
[1733366819912,0.00104132,101010.0,101000.0,0.01973]
[1733366820433,0.0017332,101070.0,101020.0,0.01973]
[1733366820750,0.00231772,101070.0,101060.0,0.17656597]
[1733366820953,0.00231772,101070.0,101060.0,0.14393]
[1733366821766,0.00231772,101070.0,101060.0,0.17656597]
[1733366821991,0.00231772,101070.0,101060.0,0.14393]
[1733366822209,0.00231772,101070.0,101060.0,0.09673]
[1733366822649,0.0017332,101100.0,101060.0,0.09673]
[1733366822857,0.0017332,101100.0,101060.0,0.12936597]
[1733366823071,0.0017332,101100.0,101090.0,0.01973]
[1733366823072,0.02433441,101100.0,101090.0,0.01973]
[1733366823527,0.02433441,101100.0,101030.0,0.0483]
[1733366823659,0.02432487,101090.0,101020.0,0.0806]
[1733366824065,0.02432487,101090.0,101030.0,0.01973]
[1733366824281,0.05745522,101100.0,101030.0,0.01973]
[1733366824487,0.00745522,101100.0,101030.0,0.01973]
[1733366824683,0.0017332,101100.0,101030.0,0.01973]
[1733366824882,0.0017332,101100.0,101050.0,0.05236597]
[1733366825097,0.0017332,101100.0,101070.0,0.05236597]
[1733366825366,0.00146922,101120.0,101110.0,0.01973]
[1733366825576,0.01920987,101200.0,101170.0,0.01973]
[1733366825789,45.55254974,101210.0,101160.0,0.01552204]
[1733366825994,0.01919645,101200.0,101160.0,0.01552204]
[1733366826251,45.48932335,101210.0,101160.0,0.00388051]
[1733366826456,45.47006196,101210.0,101160.0,0.00388051]
[1733366826578,0.0017294,101200.0,101160.0,0.00388051]
[1733366826783,0.02105479,101200.0,101160.0,0.00388051]
[1733366826989,0.11485113,101200.0,101160.0,0.00388051]
[1733366827188,0.02105479,101200.0,101160.0,0.00388051]
[1733366827885,0.02105479,101200.0,101110.0,0.03263597]
[1733366828518,0.02105479,101200.0,101120.0,0.03263597]
[1733366828721,0.0017294,101200.0,101120.0,0.03263597]
[1733366828945,0.0017294,101200.0,101150.0,0.01966]
[1733366829569,0.0017294,101200.0,101150.0,0.05229597]
[1733366829874,0.0017294,101200.0,101180.0,0.01966]
[1733366830113,0.0017294,101200.0,101150.0,0.0466]
[1733366830311,0.0249679,101190.0,101110.0,0.0468]
[1733366830531,0.0249679,101190.0,101040.0,0.1]
[1733366830532,0.05,101180.0,101080.0,0.07943597]
[1733366830742,0.06736403,101160.0,101050.0,0.03263597]
[1733366830951,0.0749679,101150.0,101060.0,0.01966]
[1733366831179,0.01736403,101140.0,101060.0,0.01966]
[1733366831396,0.05,101110.0,101060.0,0.01966]
[1733366831615,0.02464287,101100.0,101060.0,0.01966]
[1733366831809,7.8e-05,101060.0,101040.0,0.01235203]
[1733366832015,0.21154797,101140.0,101060.0,0.03263597]
[1733366832227,0.21154797,101140.0,101070.0,0.01966]
[1733366832448,0.02063893,101130.0,101070.0,0.01966]
[1733366832843,0.1739,101140.0,101070.0,0.01966]
[1733366833053,0.01736403,101130.0,101080.0,0.01966]
[1733366833230,0.02032226,101130.0,101080.0,0.01966]
[1733366833421,0.0943,101140.0,101080.0,0.01966]
[1733366833621,0.11462226,101140.0,101080.0,0.01966]
[1733366833872,0.11462226,101140.0,101060.0,0.03263597]
[1733366834078,0.15240419,101140.0,101060.0,0.04490404]
[1733366834281,0.11462226,101140.0,101070.0,0.01966]
[1733366834623,0.0943,101140.0,101090.0,0.01966]
[1733366836361,0.0943,101140.0,101110.0,0.06456404]
[1733366836551,0.0943,101140.0,101130.0,0.01966]
[1733366837107,0.00512313,101180.0,101130.0,0.01966]
[1733366837450,0.18890161,101200.0,101130.0,0.01966]
[1733366837647,0.00058405,101180.0,101120.0,0.01966]
[1733366837857,0.00058405,101180.0,101120.0,0.06456404]
[1733366838037,0.00058405,101180.0,101160.0,0.01966]
[1733366838253,0.19921146,101200.0,101160.0,0.01966]
[1733366838461,0.19938662,101200.0,101160.0,0.01966]
[1733366838666,0.19938662,101200.0,101180.0,0.01966]
[1733366839085,0.19938662,101200.0,101180.0,0.05229597]
[1733366839283,0.19938662,101200.0,101190.0,0.05229597]
[1733366839504,0.19938662,101200.0,101190.0,0.06456404]
[1733366839705,0.04765722,101200.0,101190.0,0.14766404]
[1733366839940,45.62006196,101210.0,101200.0,0.01966]
[1733366840161,45.62006196,101210.0,101200.0,0.04490404]
[1733366840373,45.38366196,101210.0,101200.0,0.04490404]
[1733366840584,45.38076196,101210.0,101200.0,0.04490404]
[1733366840794,45.38076196,101210.0,101160.0,0.01966]
[1733366841015,45.38076196,101210.0,101160.0,0.02024405]
[1733366841860,45.23076196,101210.0,101160.0,0.07024405]
[1733366842078,45.23076196,101210.0,101160.0,0.02024405]
[1733366842470,45.23581146,101210.0,101160.0,0.02024405]
[1733366842691,45.33864292,101210.0,101170.0,0.01966]
[1733366842907,45.23581146,101210.0,101170.0,0.01966]
[1733366843118,45.23581146,101210.0,101160.0,0.00058405]
[1733366843327,45.23581146,101210.0,101130.0,0.02608405]
[1733366843555,45.23639504,101210.0,101130.0,0.04746328]
[1733366843755,0.0464,101200.0,101140.0,0.01966]
[1733366844011,0.0776,101190.0,101150.0,0.019469]
[1733366844212,0.02479701,101180.0,101150.0,0.019469]
[1733366844429,0.02988651,101180.0,101150.0,0.019469]
[1733366844628,0.02988651,101180.0,101160.0,0.01966]
[1733366845052,0.0050895,101180.0,101160.0,0.01966]
[1733366845524,45.23130554,101210.0,101160.0,0.06966]
[1733366845758,45.23130554,101210.0,101170.0,0.1]
[1733366845759,45.23217024,101210.0,101170.0,0.1]
[1733366846034,45.03400367,101210.0,101180.0,0.11966]
[1733366846270,44.87766239,101210.0,101200.0,0.01966]
[1733366846488,44.81676357,101210.0,101200.0,0.11966]
[1733366846719,44.58217542,101210.0,101200.0,0.11966]
[1733366846943,44.52850528,101210.0,101200.0,0.06966]
[1733366847172,44.50471532,101210.0,101200.0,0.06966]
[1733366847395,44.50471532,101210.0,101200.0,0.11966]
[1733366847850,44.50471532,101210.0,101200.0,0.01966]
[1733366848304,44.50305287,101210.0,101170.0,0.04954817]
[1733366848544,44.50305287,101210.0,101190.0,0.1]
[1733366848741,44.36814287,101210.0,101190.0,0.1]
[1733366848956,44.3188384,101210.0,101180.0,0.01966]
[1733366849767,44.3188384,101210.0,101180.0,0.06966]
[1733366849966,44.3188384,101210.0,101160.0,0.05]
[1733366849967,44.29664489,101210.0,101150.0,0.16408404]
[1733366850174,44.29664489,101210.0,101160.0,0.0666274]
[1733366850387,44.16827589,101210.0,101170.0,0.0019672]
[1733366850604,44.16827589,101210.0,101160.0,0.01966]
[1733366850836,44.16827589,101210.0,101190.0,0.01966]
[1733366851063,44.16827589,101210.0,101200.0,0.11466]
[1733366851494,44.13870067,101210.0,101200.0,0.06466]
[1733366851721,44.12637211,101210.0,101200.0,0.01966]
[1733366851927,44.06585317,101210.0,101200.0,0.01966]
[1733366852545,44.06585317,101210.0,101150.0,0.019469]
[1733366852756,44.06585317,101210.0,101160.0,0.01966]
[1733366852991,44.07085317,101210.0,101160.0,0.01966]
[1733366853192,0.054,101190.0,101150.0,0.06692289]
[1733366853428,0.0882,101180.0,101130.0,0.095]
[1733366853855,0.0882,101180.0,101140.0,0.01966]
[1733366854062,0.0832,101180.0,101140.0,0.01966]
[1733366854325,0.0882,101180.0,101140.0,0.01966]
[1733366854537,0.02866116,101190.0,101140.0,0.01966]
[1733366854764,44.09585317,101210.0,101130.0,0.095]
[1733366854986,0.03,101190.0,101140.0,0.01966]
[1733366855205,0.02271132,101180.0,101140.0,0.01966]
[1733366855434,0.03,101170.0,101140.0,0.01966]
[1733366856289,0.03,101200.0,101140.0,0.01966]
[1733366856521,0.03,101200.0,101190.0,0.045145]
[1733366856747,0.03058322,101200.0,101190.0,0.045145]
[1733366857650,0.03144812,101200.0,101190.0,0.045145]
[1733366857859,0.09557013,101200.0,101190.0,0.01966]
[1733366858065,0.03144812,101200.0,101110.0,0.05]
[1733366858500,0.03144812,101200.0,101090.0,0.09958763]
[1733366858714,0.03144812,101200.0,101120.0,0.148]
[1733366858922,0.03144812,101200.0,101140.0,0.1]
[1733366859123,10.74288692,101210.0,101150.0,0.04961504]
[1733366859348,0.06132175,101200.0,101160.0,0.0019674]
[1733366859582,0.06132175,101200.0,101140.0,0.00058322]
[1733366860428,0.06132175,101200.0,101150.0,0.03]
[1733366861168,0.04358195,101200.0,101150.0,0.08]
[1733366861385,3.10442897,101210.0,101170.0,0.03]
[1733366861586,3.07602179,101210.0,101170.0,0.03]
[1733366862253,3.0493913,101210.0,101170.0,0.03]
[1733366862617,3.04522525,101210.0,101170.0,0.03]
[1733366862827,2.83530565,101210.0,101190.0,0.03]
[1733366862981,2.78941497,101210.0,101200.0,0.08]
[1733366863186,2.33428988,101210.0,101200.0,0.15755414]
[1733366863399,2.33424988,101210.0,101200.0,0.08]
[1733366863811,2.31706499,101210.0,101200.0,0.03]
[1733366864013,2.12614658,101210.0,101200.0,0.08]
[1733366864271,2.08178757,101210.0,101200.0,0.13]
[1733366864649,2.05191969,101210.0,101200.0,0.13]
[1733366864908,1.85848813,101210.0,101200.0,0.13]
[1733366865119,1.65389589,101210.0,101200.0,0.03]
[1733366865321,1.60422207,101210.0,101200.0,0.03]
[1733366865491,1.3622296,101210.0,101200.0,0.08]
[1733366865710,1.30630308,101210.0,101200.0,0.13]
[1733366866064,1.00214509,101210.0,101200.0,0.13]
[1733366866291,1.00214509,101210.0,101200.0,0.12948028]
[1733366866512,0.43967122,101210.0,101200.0,0.17849091]
[1733366866727,0.38974836,101210.0,101200.0,0.12948028]
[1733366866943,0.30580892,101210.0,101200.0,0.12948028]
[1733366867144,0.21692368,101210.0,101200.0,0.12948028]
[1733366867355,0.11802342,101210.0,101200.0,0.22878028]
[1733366867556,0.06752607,101220.0,101200.0,0.22878028]
[1733366867757,0.06752607,101220.0,101210.0,0.12948028]
[1733366867758,0.06013051,101220.0,101210.0,0.12948028]
[1733366867961,0.06013051,101220.0,101210.0,0.15426148]
[1733366868423,0.0416429,101220.0,101210.0,0.17166148]
[1733366868652,0.01892858,101220.0,101210.0,0.15426148]
[1733366869135,0.06663836,101290.0,101250.0,0.09914028]
[1733366869338,0.06681349,101290.0,101260.0,0.05]
[1733366869540,0.06681349,101290.0,101270.0,0.04914028]
[1733366869988,0.05677349,101290.0,101270.0,0.04914028]
[1733366870143,0.02597473,101290.0,101270.0,0.04914028]
[1733366871043,0.15890922,101280.0,101230.0,0.01966]
[1733366871251,0.17739761,101280.0,101230.0,0.01966]
[1733366871429,0.0475,101270.0,101230.0,0.01966]
[1733366871630,0.0475,101250.0,101220.0,0.01052297]
[1733366871834,0.10990922,101240.0,101220.0,0.00022328]
[1733366872040,0.0475,101230.0,101220.0,0.01966]
[1733366872475,0.07276364,101230.0,101210.0,1.0051212]
[1733366873111,0.02578905,101220.0,101210.0,0.7489212]
[1733366873474,0.05105019,101220.0,101210.0,0.6208212]
[1733366873685,0.02525297,101220.0,101210.0,0.6208212]
[1733366873887,0.0822,101240.0,101210.0,0.6208212]
[1733366874088,0.02525297,101230.0,101210.0,0.6208212]
[1733366874411,0.082375,101240.0,101210.0,0.6208212]
[1733366875067,0.000175,101240.0,101210.0,0.6208212]
[1733366875357,0.0216333,101260.0,101210.0,0.6208212]
[1733366875559,0.0216333,101260.0,101210.0,0.6209962]
[1733366875913,0.02123122,101260.0,101210.0,0.6209962]
[1733366876309,0.0975,101270.0,101210.0,0.6209962]
[1733366876310,0.1475,101270.0,101210.0,0.6209962]
[1733366876553,0.05,101260.0,101210.0,0.6209962]
[1733366876756,0.07123122,101260.0,101210.0,0.6209962]
[1733366876969,0.03810434,101260.0,101210.0,0.6209962]
[1733366877192,0.08893767,101260.0,101210.0,0.6209962]
[1733366877393,0.02206455,101250.0,101210.0,0.6209962]
[1733366877589,0.05,101260.0,101210.0,0.6209962]
[1733366877956,0.07252705,101260.0,101210.0,0.6188762]
[1733366878166,0.05,101240.0,101210.0,0.6188762]
[1733366878375,0.07252705,101240.0,101210.0,0.6188762]
[1733366878657,0.07252705,101260.0,101210.0,0.6188762]
[1733366878861,0.05,101250.0,101210.0,0.6188762]
[1733366879108,0.1120027,101260.0,101210.0,0.6188762]
[1733366879749,0.05,101240.0,101210.0,0.6188762]
[1733366880039,0.02179289,101250.0,101210.0,0.6188762]
[1733366880265,0.05,101250.0,101210.0,0.6188762]
[1733366880496,0.05,101240.0,101210.0,1.6188762]
[1733366880727,0.0628663,101260.0,101210.0,1.6188762]
[1733366880952,0.1008636,101260.0,101210.0,1.6188762]
[1733366881177,0.0508636,101260.0,101210.0,1.6188762]
[1733366881414,0.0008636,101260.0,101210.0,1.6188762]
[1733366882304,0.0008636,101260.0,101210.0,1.7446762]
[1733366882732,0.0257996,101290.0,101210.0,1.6946762]
[1733366882947,0.0257996,101290.0,101210.0,1.7846762]
[1733366883179,0.0257996,101290.0,101240.0,0.01966]
[1733366883564,0.0257996,101290.0,101260.0,0.0005]
[1733366884307,0.0757996,101290.0,101260.0,0.0005]
[1733366884524,0.0002,101300.0,101260.0,0.0005]
[1733366884761,0.000375,101300.0,101260.0,0.0005]
[1733366884969,0.000375,101300.0,101280.0,0.01966]
[1733366885151,5e-05,101310.0,101300.0,0.01966]
[1733366885404,0.08004525,101330.0,101300.0,0.01966]
[1733366885623,0.00685285,101330.0,101300.0,0.02024301]
[1733366886048,0.00577377,101340.0,101300.0,0.02024301]
[1733366886260,0.00577377,101340.0,101300.0,0.06524301]
[1733366887130,0.00577377,101340.0,101310.0,0.0005]
[1733366887543,0.00577377,101340.0,101310.0,0.02016]
[1733366888228,0.01901649,101350.0,101310.0,0.02016]
[1733366888439,0.01897649,101350.0,101310.0,0.02016]
[1733366888679,0.0008636,101370.0,101330.0,0.06966]
[1733366888892,0.02319786,101410.0,101370.0,0.06496]
[1733366889117,0.0008636,101400.0,101390.0,0.04946]
[1733366889328,0.1094143,101450.0,101390.0,0.01966]
[1733366889790,0.00381891,101430.0,101390.0,0.01966]
[1733366890247,0.00440264,101430.0,101390.0,0.01966]
[1733366890465,0.00440264,101430.0,101400.0,0.0005]
[1733366891767,0.00440264,101430.0,101380.0,0.06919198]
[1733366891970,0.05440264,101430.0,101380.0,0.06919198]
[1733366892181,0.05390264,101430.0,101380.0,0.06919198]
[1733366892384,0.00390264,101430.0,101380.0,0.04953198]
[1733366892600,0.04904958,101410.0,101300.0,0.04994274]
[1733366892816,0.03678448,101380.0,101370.0,0.01966]
[1733366893024,0.0972,101390.0,101370.0,0.01966]
[1733366893254,0.00135955,101320.0,101300.0,0.04994274]
[1733366893458,0.00135955,101330.0,101300.0,0.04994274]
[1733366893666,0.00135955,101350.0,101300.0,0.04994274]
[1733366893883,0.00135955,101350.0,101310.0,0.01966]
[1733366894142,0.00017483,101350.0,101310.0,0.01966]
[1733366894341,0.03678448,101370.0,101310.0,0.01966]
[1733366894560,0.03678448,101380.0,101310.0,0.01983483]
[1733366894791,0.02311283,101370.0,101310.0,0.01983483]
[1733366895223,0.02311283,101380.0,101310.0,0.01983483]
[1733366895475,0.02311283,101370.0,101310.0,0.01983483]
[1733366895679,0.02311283,101380.0,101300.0,0.14648991]
[1733366895899,0.02311283,101380.0,101300.0,0.06960274]
[1733366895900,0.00017476,101370.0,101300.0,0.06960274]
[1733366896330,0.02328759,101370.0,101300.0,0.06960274]
[1733366896568,0.08620496,101410.0,101320.0,0.01966]
[1733366896800,0.08620496,101410.0,101310.0,0.07667432]
[1733366896801,0.00017476,101410.0,101370.0,0.0005]
[1733366897008,0.1259,101470.0,101370.0,0.0005]
[1733366897189,0.00058243,101440.0,101370.0,0.0005]
[1733366897821,0.00058243,101440.0,101380.0,0.06866]
[1733366898429,8.243e-05,101440.0,101380.0,0.06866]
[1733366898607,8.243e-05,101440.0,101380.0,0.11866]
[1733366898854,0.0018102,101460.0,101380.0,0.16866]
[1733366899062,0.00198486,101460.0,101400.0,0.01966]
[1733366899902,0.00739718,101490.0,101440.0,0.0005]
[1733366900110,0.05489718,101480.0,101440.0,0.0005]
[1733366900320,0.00739718,101460.0,101440.0,0.0005]
[1733366900741,0.00739718,101440.0,101390.0,0.01966]
[1733366900946,0.00739718,101420.0,101390.0,0.01966]
[1733366901149,0.00739718,101420.0,101400.0,0.01966]
[1733366901359,0.1223,101430.0,101400.0,0.01966]
[1733366901567,0.1218,101430.0,101400.0,0.01966]
[1733366902204,0.1218,101430.0,101410.0,0.01966]
[1733366903051,0.08765718,101470.0,101430.0,0.0005]
[1733366903495,0.00735718,101460.0,101430.0,0.0005]
[1733366903902,0.08765718,101470.0,101440.0,0.01966]
[1733366904120,0.00735718,101460.0,101440.0,0.01966]
[1733366904336,0.00735718,101450.0,101440.0,0.00017466]
[1733366904775,0.00685718,101450.0,101430.0,1.0005]
[1733366904997,0.00017449,101450.0,101430.0,1.0005]
[1733366905657,0.0499,101460.0,101430.0,1.0005]
[1733366905835,0.0704629,101460.0,101430.0,1.00108243]
[1733366906276,0.00685718,101440.0,101430.0,0.92348243]
[1733366906404,0.0704629,101460.0,101430.0,0.92348243]
[1733366906605,0.00685718,101450.0,101430.0,0.92348243]
[1733366906861,0.01447673,101460.0,101430.0,0.68808243]
[1733366907072,0.01990055,101500.0,101430.0,0.68808243]
[1733366907281,0.01990055,101500.0,101430.0,0.50322642]
[1733366907479,0.197063,101490.0,101430.0,0.43543724]
[1733366907707,0.01990055,101480.0,101430.0,0.38525989]
[1733366907883,0.01990055,101480.0,101370.0,0.0005]
[1733366907884,0.197125,101460.0,101370.0,0.0005]
[1733366908072,0.24659103,101450.0,101370.0,0.0005]
[1733366908460,0.29096263,101450.0,101370.0,0.0005]
[1733366908680,49.0876255,101270.0,101260.0,0.0505]
[1733366908838,48.38071024,101270.0,101260.0,0.0505]
[1733366909046,47.78901799,101270.0,101260.0,0.07016]
[1733366909252,47.70831799,101270.0,101260.0,0.07016]
[1733366909430,47.67877215,101270.0,101260.0,0.027176]
[1733366909632,47.67877215,101270.0,101260.0,0.07016]
[1733366909849,47.51107229,101270.0,101260.0,0.17016]
[1733366910059,47.51107229,101270.0,101260.0,0.07074301]
[1733366910269,47.51107229,101270.0,101260.0,0.12074301]
[1733366910512,47.44519215,101270.0,101260.0,0.08781731]
[1733366910933,47.44519215,101270.0,101260.0,0.18781731]
[1733366911134,47.41135077,101270.0,101260.0,0.08781731]
[1733366911343,47.41135077,101270.0,101260.0,0.03781731]
[1733366911555,47.41135077,101270.0,101260.0,0.02074301]
[1733366911756,47.37154684,101270.0,101260.0,0.07074301]
[1733366912177,47.37154684,101270.0,101260.0,0.02074301]
[1733366912388,47.06012032,101270.0,101260.0,0.12074301]
[1733366912596,47.06012032,101270.0,101260.0,0.00227717]
[1733366912817,47.06012032,101270.0,101240.0,0.01029484]
[1733366913042,47.06012032,101270.0,101260.0,0.00227717]
[1733366913245,47.06012032,101270.0,101260.0,0.02193717]
[1733366913671,47.06012032,101270.0,101260.0,0.01966]
[1733366914291,47.06012032,101270.0,101240.0,0.02419943]
[1733366914504,47.04697263,101270.0,101260.0,0.00227717]
[1733366914709,47.0416393,101270.0,101240.0,0.06019943]
[1733366914979,46.94263929,101270.0,101260.0,0.00227717]
[1733366915338,46.94263929,101270.0,101260.0,0.02193717]
[1733366915541,46.94263929,101270.0,101260.0,0.01966]
[1733366915742,46.94263929,101270.0,101260.0,0.02193717]
[1733366916677,46.94263929,101270.0,101260.0,0.27193717]
[1733366916915,46.79067545,101270.0,101260.0,0.30413089]
[1733366917126,46.79067545,101270.0,101260.0,0.27193717]
[1733366917328,46.78967545,101270.0,101260.0,0.27193717]
[1733366918097,46.78735267,101270.0,101260.0,0.26966]
[1733366919090,46.78735267,101270.0,101260.0,0.25]
[1733366919561,0.0497,101260.0,101250.0,0.26966]
[1733366919762,0.0997,101260.0,101240.0,0.00190669]
[1733366919971,0.04612461,101240.0,101230.0,0.26029203]
[1733366920170,0.09742283,101260.0,101210.0,1.62608036]
[1733366920171,0.04612461,101220.0,101210.0,1.62608036]
[1733366920322,0.07038785,101250.0,101210.0,1.62608036]
[1733366920323,0.04612461,101230.0,101220.0,0.25]
[1733366920531,0.09846502,101230.0,101220.0,0.01966]
[1733366920898,0.12132461,101230.0,101220.0,0.26966]
[1733366921088,0.12132461,101230.0,101210.0,1.87108036]
[1733366921239,0.0758,101230.0,101220.0,0.25]
[1733366923322,0.1256,101260.0,101250.0,0.26966]
[1733366924586,0.1256,101260.0,101250.0,0.01983476]
[1733366925236,46.78735267,101270.0,101260.0,0.26966]
[1733366925474,46.28735267,101270.0,101260.0,0.01966]
[1733366925741,46.28546142,101270.0,101260.0,0.26966]
[1733366927485,46.28546142,101270.0,101260.0,0.27066]
[1733366927695,46.28546142,101270.0,101250.0,0.00017476]
[1733366927901,46.28546142,101270.0,101260.0,0.25]
[1733366928109,46.31232004,101270.0,101260.0,0.26966]
[1733366928312,46.28546142,101270.0,101260.0,0.26966]
[1733366929327,46.28446142,101270.0,101260.0,0.26966]
[1733366929960,46.28446142,101270.0,101260.0,0.01966]
[1733366930173,0.12662283,101260.0,101250.0,0.01983476]
[1733366930383,0.04552461,101250.0,101230.0,0.25]
[1733366930583,0.04552461,101250.0,101230.0,0.25017476]
[1733366931017,0.06893967,101240.0,101230.0,0.00017476]